fUSD/lending_fUSD_20250217
["ID","MTS","AMOUNT","RATE_DAILY","PERIOD"]
[353350003,1739789450088,-1951.56,0.00013698,2]
[353350004,1739789450098,-2085.32,0.00013698,2]
[353350005,1739789450108,-829.28,0.00013698,2]
[353350006,1739789450117,-500.87854077,0.00013698,2]
[353350007,1739789450126,-507.11890795,0.00013698,2]
[353350008,1739789450135,-574.7,0.00013698,2]
[353350009,1739789450144,-500.0,0.00013698,2]
[353350010,1739789450154,-516.47719436,0.00013698,2]
[353350011,1739789450163,-2109.83,0.00013698,2]
[353350012,1739789450174,-500.0,0.00013698,2]
[353350013,1739789450183,-501.26301027,0.00013698,2]
[353350014,1739789450193,-500.0,0.00013698,2]
[353350015,1739789450202,-500.0,0.00013698,2]
[353350016,1739789450212,-500.0,0.00013698,2]
[353350017,1739789450221,-240.14862099,0.00013698,2]
[353350018,1739789450614,-259.85137901,0.00013698,2]
[353350019,1739789450623,-197.37689185,0.00013698,2]
[353350020,1739789450634,-311.925,0.00013698,2]
[353350771,1739789751793,222.0,0.0002,120]
[353351568,1739790631656,-550.0,0.0001,2]
[353351569,1739790631666,-150.0,0.0001,2]
[353351570,1739790631675,-150.0,0.0001,3]
[353351571,1739790631685,-150.37378768,0.0001,4]
[353351572,1739790631694,-500.0,0.0001,2]
[353351573,1739790631703,-340.13307347,0.0001,2]
[353351574,1739790631712,-900.0,0.00010058,2]
[353351575,1739790631722,-500.0,0.00010058,2]
[353351576,1739790631731,-900.0,0.00010058,2]
[353351577,1739790631740,-241.11,0.00010137,2]
[353351578,1739790631749,-802.43,0.00010733,2]
[353351579,1739790631759,-150.0,0.00011,2]
[353351580,1739790631770,-900.0,0.00011428,2]
[353351581,1739790631780,-600.0,0.00012,2]
[353351582,1739790631790,-642.70683462,0.00012,2]
[353351583,1739790631801,-243.72,0.00012308,2]
[353351584,1739790631810,-250.0,0.00012321,2]
[353351585,1739790631819,-1905.23,0.00012321,2]
[353351586,1739790631828,-2025.0,0.00012331,2]
[353351587,1739790631837,-150.0,0.00012331,2]
[353351588,1739790631846,-569.0,0.00012331,2]
[353351589,1739790631856,-638.0,0.00012331,2]
[353351590,1739790631867,-1786.0,0.00012331,2]
[353351591,1739790631878,-1266.0,0.00012331,2]
[353351592,1739790631889,-908.0,0.00012331,2]
[353351593,1739790631898,-783.0,0.00012331,2]
[353351594,1739790631907,-936.26855015,0.00012331,2]
[353351599,1739790631993,-2020.73144985,0.00012331,2]
[353351601,1739790632002,-4027.0,0.00012331,2]
[353351602,1739790632013,-3917.0,0.00012331,2]
[353351603,1739790632023,-150.0,0.00012331,2]
[353351604,1739790632032,-1000.0,0.00012341,2]
[353351605,1739790632041,-1587.69772074,0.00012383,2]
[353351624,1739790637371,-900.0,0.00011428,2]
[353351625,1739790637381,-7982.62227926,0.00012383,2]
[353351626,1739790637391,-150.0,0.0001269,2]
[353351627,1739790637401,-645.76,0.00012715,2]
[353351628,1739790637410,-900.0,0.00012798,2]
[353351629,1739790637420,-500.0,0.00012798,2]
[353351630,1739790637429,-900.0,0.00012798,2]
[353351631,1739790637438,-802.43,0.00012997,2]
[353351632,1739790637447,-500.0,0.000131,2]
[353351633,1739790637457,-169.33,0.00013114,2]
[353351634,1739790637467,-322.56156471,0.00013205,2]
[353351635,1739790637477,-322.56156471,0.0001326,2]
[353351636,1739790637487,-400.0,0.000133,4]
[353351637,1739790637497,-322.56156471,0.00013315,2]
[353351638,1739790637507,-322.56156471,0.00013397,2]
[353351639,1739790637518,-1357.0,0.000134,2]
[353351640,1739790637528,-900.0,0.000134,4]
[353351641,1739790637537,-322.56156471,0.00013452,2]
[353351642,1739790637547,-1400.0,0.000135,4]
[353351643,1739790637561,-1193.2003904,0.00013504,2]
[353351644,1739790637572,-322.56156471,0.00013507,2]
[353351645,1739790637582,-215.7624643,0.00013513,2]
[353351646,1739790637593,-322.56156471,0.00013589,2]
[353351651,1739790637870,-421.58340367,0.00013593,2]
[353351652,1739790637880,-2622.546,0.00013598,2]
[353351653,1739790637889,-179.404,0.00013598,2]
[353351654,1739790637898,-1788.81599271,0.00013598,2]
[353351655,1739790637907,-314.60156025,0.00013598,2]
[353351656,1739790637916,-12981.3596238,0.00013599,2]
[353351657,1739790637925,-297.34115295,0.000136,2]
[353351658,1739790637935,-600.0,0.000136,2]
[353351659,1739790637945,-370.75879408,0.000136,2]
[353351660,1739790637954,-776.33880663,0.000136,2]
[353351661,1739790637963,-1900.0,0.000136,4]
[353351662,1739790637971,-1788.81599262,0.00013624,2]
[353351663,1739790637981,-500.0,0.00013629,2]
[353351664,1739790637990,-2000.0,0.00013629,2]
[353351665,1739790637999,-500.0,0.00013629,2]
[353351666,1739790638009,-200.0,0.00013629,2]
[353351667,1739790638019,-322.56156471,0.00013644,2]
[353351668,1739790638029,-1788.81599262,0.00013651,2]
[353351669,1739790638039,-5418.21878001,0.0001366,2]
[353351670,1739790638048,-1566.46844196,0.0001367,2]
[353351671,1739790638059,-2387.82654396,0.0001367,2]
[353351672,1739790638070,-1788.81599262,0.00013677,2]
[353351673,1739790638083,-306.68235651,0.0001368,2]
[353351674,1739790638098,-16338.7902688,0.00013692,2]
[353351675,1739790638122,-4897.95432358,0.00013692,2]
[353351788,1739790639513,-2866.59553672,0.00013692,2]
[353351795,1739790639565,-355.85299999,0.00013692,2]
[353351807,1739790639671,-487.992505,0.00013692,2]
[353351835,1739790639932,-481.104,0.00013692,2]
[353351848,1739790642544,-495.32,0.00011428,2]
[353351849,1739790642554,-251856.45974313,0.00013692,2]
[353351850,1739790642566,-300.0,0.00013697,2]
[353351851,1739790642575,-300.0,0.00013697,2]
[353351852,1739790642585,-263.52889134,0.00013697,2]
[353351853,1739790642596,-300.0,0.00013697,2]
[353351854,1739790642606,-300.0,0.00013697,2]
[353351855,1739790642616,-300.0,0.00013697,2]
[353351856,1739790642626,-158.35923123,0.00013697,3]
[353351857,1739790642635,-1688860.52468407,0.00013697,3]
[353351858,1739790642645,-500.0,0.00013698,2]
[353351859,1739790642655,-500.0,0.00013698,2]
[353351860,1739790642664,-501.75816644,0.00013698,2]
[353351861,1739790642674,-165.85606959,0.00013698,2]
[353351862,1739790642683,-500.0,0.00013698,2]
[353351863,1739790642692,-500.0,0.00013698,2]
[353351864,1739790642701,-500.0,0.00013698,2]
[353351865,1739790642711,-500.0,0.00013698,2]
[353351866,1739790642720,-500.0,0.00013698,2]
[353351867,1739790642730,-500.0,0.00013698,2]
[353351868,1739790642740,-500.0,0.00013698,2]
[353351869,1739790642749,-500.0,0.00013698,2]
[353351870,1739790642760,-500.0,0.00013698,2]
[353351871,1739790642770,-500.0,0.00013698,2]
[353351872,1739790642779,-500.0,0.00013698,2]
[353351873,1739790642789,-200.0,0.00013698,2]
[353351874,1739790642799,-500.0,0.00013698,2]
[353351875,1739790642809,-500.0,0.00013698,2]
[353351876,1739790642819,-500.0,0.00013698,2]
[353351877,1739790642828,-500.0,0.00013698,2]
[353351878,1739790642837,-500.0,0.00013698,2]
[353351879,1739790642847,-500.0,0.00013698,2]
[353351880,1739790642857,-500.0,0.00013698,2]
[353351881,1739790642866,-500.0,0.00013698,2]
[353351882,1739790642875,-500.0,0.00013698,2]
[353351883,1739790642884,-500.0,0.00013698,2]
[353351884,1739790642894,-500.0,0.00013698,2]
[353351885,1739790642903,-500.0,0.00013698,2]
[353351886,1739790642913,-500.0,0.00013698,2]
[353351887,1739790642922,-500.0,0.00013698,2]
[353351888,1739790642931,-500.0,0.00013698,2]
[353351889,1739790642941,-503.9284504,0.00013698,2]
[353351890,1739790642950,-518.09486876,0.00013698,2]
[353351891,1739790642959,-500.0,0.00013698,2]
[353351892,1739790642969,-500.0,0.00013698,2]
[353351893,1739790642979,-500.0,0.00013698,2]
[353351894,1739790642988,-500.0,0.00013698,2]
[353351895,1739790642997,-500.0,0.00013698,2]
[353351896,1739790643006,-500.0,0.00013698,2]
[353351897,1739790643016,-500.0,0.00013698,2]
[353351898,1739790643025,-501.42351033,0.00013698,2]
[353351899,1739790643035,-500.0,0.00013698,2]
[353351900,1739790643044,-500.0,0.00013698,2]
[353351901,1739790643053,-500.0,0.00013698,2]
[353351902,1739790643063,-500.0,0.00013698,2]
[353351903,1739790643073,-500.0,0.00013698,2]
[353351904,1739790643082,-500.0,0.00013698,2]
[353351905,1739790643092,-500.0,0.00013698,2]
[353351906,1739790643101,-500.0,0.00013698,2]
[353351907,1739790643110,-500.0,0.00013698,2]
[353351908,1739790643120,-500.0,0.00013698,2]
[353351909,1739790643129,-500.0,0.00013698,2]
[353351910,1739790643138,-500.0,0.00013698,2]
[353351911,1739790643147,-500.0,0.00013698,2]
[353351912,1739790643157,-500.0,0.00013698,2]
[353351913,1739790643166,-500.0,0.00013698,2]
[353351914,1739790643177,-500.0,0.00013698,2]
[353351915,1739790643187,-500.0,0.00013698,2]
[353351916,1739790643197,-500.0,0.00013698,2]
[353351918,1739790643206,-501.26739348,0.00013698,2]
[353351919,1739790643215,-500.0,0.00013698,2]
[353351920,1739790643225,-500.0,0.00013698,2]
[353351921,1739790643234,-745.4,0.00013698,2]
[353351922,1739790643243,-745.4,0.00013698,2]
[353351923,1739790643253,-500.0,0.00013698,2]
[353351924,1739790643263,-500.0,0.00013698,2]
[353351925,1739790643272,-500.0,0.00013698,2]
[353351926,1739790643281,-500.0,0.00013698,2]
[353351927,1739790643290,-500.0,0.00013698,2]
[353351928,1739790643299,-500.0,0.00013698,2]
[353351929,1739790643311,-500.0,0.00013698,2]
[353351930,1739790643323,-500.0,0.00013698,2]
[353351931,1739790643332,-583.19,0.00013698,2]
[353351932,1739790643342,-500.0,0.00013698,2]
[353351933,1739790643351,-500.0,0.00013698,2]
[353351934,1739790643360,-500.0,0.00013698,2]
[353351935,1739790643369,-500.0,0.00013698,2]
[353351936,1739790643379,-500.47526069,0.00013698,2]
[353351937,1739790643388,-323.88015564,0.00013698,2]
[353351938,1739790643398,-500.0,0.00013698,2]
[353351939,1739790643408,-503.54002673,0.00013698,2]
[353351940,1739790643417,-500.0,0.00013698,2]
[353351941,1739790643427,-500.0,0.00013698,2]
[353351942,1739790643436,-500.0,0.00013698,2]
[353351943,1739790643446,-500.0,0.00013698,2]
[353351944,1739790643455,-236.91799935,0.00013698,2]
[353351945,1739790643464,-500.0,0.00013698,2]
[353351946,1739790643474,-500.0,0.00013698,2]
[353351947,1739790643483,-500.0,0.00013698,2]
[353351948,1739790643493,-500.0,0.00013698,2]
[353351949,1739790643502,-500.0,0.00013698,2]
[353351950,1739790643511,-500.72357396,0.00013698,2]
[353351951,1739790643520,-502.89556045,0.00013698,2]
[353351952,1739790643530,-192.51937733,0.00013698,2]
[353351953,1739790643539,-500.0,0.00013698,2]
[353351954,1739790643549,-500.0,0.00013698,2]
[353351955,1739790643558,-500.0,0.00013698,2]
[353351956,1739790643568,-192.33147529,0.00013698,2]
[353351958,1739790643577,-500.0,0.00013698,2]
[353351960,1739790643586,-500.0,0.00013698,2]
[353351962,1739790643595,-301.04115706,0.00013698,2]
[353351964,1739790643604,-500.0,0.00013698,2]
[353351966,1739790643613,-727.57,0.00013698,2]
[353351968,1739790643623,-503.46008677,0.00013698,2]
[353351969,1739790643632,-500.0,0.00013698,2]
[353351971,1739790643642,-500.53301021,0.00013698,2]
[353351973,1739790643651,-500.0,0.00013698,2]
[353351975,1739790643660,-503.56512095,0.00013698,2]
[353351977,1739790643670,-501.06053356,0.00013698,2]
[353351978,1739790643679,-500.0,0.00013698,2]
[353351979,1739790643688,-500.0,0.00013698,2]
[353351980,1739790643698,-274.13898144,0.00013698,2]
[353351981,1739790643707,-500.0,0.00013698,2]
[353351982,1739790643717,-500.0,0.00013698,2]
[353351983,1739790643727,-317.43211692,0.00013698,2]
[353351984,1739790643736,-500.91963158,0.00013698,2]
[353351985,1739790643745,-500.0,0.00013698,2]
[353351986,1739790643755,-500.0,0.00013698,2]
[353351987,1739790643764,-500.0,0.00013698,2]
[353351988,1739790643775,-500.0,0.00013698,2]
[353351990,1739790643784,-500.0,0.00013698,2]
[353351991,1739790643793,-500.0,0.00013698,2]
[353351993,1739790643803,-500.0,0.00013698,2]
[353351995,1739790643814,-500.0,0.00013698,2]
[353351997,1739790643824,-500.0,0.00013698,2]
[353351999,1739790643833,-500.0,0.00013698,2]
[353352002,1739790643843,-500.0,0.00013698,2]
[353352004,1739790643853,-503.69397327,0.00013698,2]
[353352005,1739790643862,-500.0,0.00013698,2]
[353352007,1739790643872,-500.0,0.00013698,2]
[353352009,1739790643881,-500.0,0.00013698,2]
[353352011,1739790643891,-500.0,0.00013698,2]
[353352013,1739790643900,-500.0,0.00013698,2]
[353352015,1739790643910,-500.0,0.00013698,2]
[353352017,1739790643919,-500.0,0.00013698,2]
[353352019,1739790643929,-156.067172,0.00013698,2]
[353352021,1739790643938,-500.0,0.00013698,2]
[353352023,1739790643947,-199.77530916,0.00013698,2]
[353352025,1739790643958,-625.7,0.00013698,2]
[353352027,1739790643967,-500.0,0.00013698,2]
[353352029,1739790643976,-500.0,0.00013698,2]
[353352031,1739790643986,-500.0,0.00013698,2]
[353352033,1739790643995,-500.0,0.00013698,2]
[353352034,1739790644005,-500.0,0.00013698,2]
[353352048,1739790644255,-500.0,0.00013698,2]
[353352049,1739790644265,-500.0,0.00013698,2]
[353352050,1739790644275,-500.0,0.00013698,2]
[353352051,1739790644285,-500.0,0.00013698,2]
[353352052,1739790644295,-500.0,0.00013698,2]
[353352053,1739790644305,-500.0,0.00013698,2]
[353352054,1739790644316,-794.0,0.00013698,2]
[353352055,1739790644332,-500.0,0.00013698,2]
[353352056,1739790644341,-500.0,0.00013698,2]
[353352057,1739790644351,-591.44175845,0.00013698,2]
[353352058,1739790644365,-500.0,0.00013698,2]
[353352059,1739790644375,-500.0,0.00013698,2]
[353352060,1739790644384,-874.85,0.00013698,2]
[353352061,1739790644394,-500.0,0.00013698,2]
[353352062,1739790644409,-500.0,0.00013698,2]
[353352063,1739790644420,-500.0,0.00013698,2]
[353352064,1739790644430,-500.0,0.00013698,2]
[353352065,1739790644439,-500.0,0.00013698,2]
[353352066,1739790644448,-500.0,0.00013698,2]
[353352067,1739790644459,-623.03,0.00013698,2]
[353352068,1739790644469,-500.0,0.00013698,2]
[353352069,1739790644478,-500.0,0.00013698,2]
[353352070,1739790644488,-500.0,0.00013698,2]
[353352071,1739790644497,-500.0,0.00013698,2]
[353352072,1739790644507,-500.0,0.00013698,2]
[353352073,1739790644517,-500.0,0.00013698,2]
[353352074,1739790644526,-500.0,0.00013698,2]
[353352075,1739790644536,-500.0,0.00013698,2]
[353352076,1739790644546,-607.92,0.00013698,2]
[353352077,1739790644555,-500.0,0.00013698,2]
[353352078,1739790644565,-500.0,0.00013698,2]
[353352079,1739790644574,-500.0,0.00013698,2]
[353352080,1739790644585,-500.0,0.00013698,2]
[353352081,1739790644594,-500.0,0.00013698,2]
[353352082,1739790644604,-500.0,0.00013698,2]
[353352083,1739790644614,-575.95,0.00013698,2]
[353352084,1739790644624,-500.0,0.00013698,2]
[353352085,1739790644633,-500.0,0.00013698,2]
[353352086,1739790644643,-500.0,0.00013698,2]
[353352087,1739790644652,-500.0,0.00013698,2]
[353352088,1739790644662,-500.0,0.00013698,2]
[353352089,1739790644672,-500.0,0.00013698,2]
[353352090,1739790644681,-500.0,0.00013698,2]
[353352091,1739790644690,-1195.91,0.00013698,2]
[353352092,1739790644700,-500.0,0.00013698,2]
[353352093,1739790644709,-500.0,0.00013698,2]
[353352094,1739790644719,-500.0,0.00013698,2]
[353352095,1739790644728,-500.0,0.00013698,2]
[353352096,1739790644738,-500.0,0.00013698,2]
[353352097,1739790644747,-503.93372853,0.00013698,2]
[353352098,1739790644756,-500.0,0.00013698,2]
[353352099,1739790644765,-500.0,0.00013698,2]
[353352100,1739790644775,-500.0,0.00013698,2]
[353352101,1739790644784,-500.0,0.00013698,2]
[353352102,1739790644793,-500.0,0.00013698,2]
[353352103,1739790644803,-500.0,0.00013698,2]
[353352104,1739790644812,-500.0,0.00013698,2]
[353352105,1739790644821,-806.16,0.00013698,2]
[353352106,1739790644830,-500.0,0.00013698,2]
[353352107,1739790644839,-500.0,0.00013698,2]
[353352108,1739790644848,-500.0,0.00013698,2]
[353352109,1739790644858,-500.0,0.00013698,2]
[353352110,1739790644867,-500.0,0.00013698,2]
[353352111,1739790644877,-500.0,0.00013698,2]
[353352112,1739790644886,-500.0,0.00013698,2]
[353352113,1739790644896,-589.48,0.00013698,2]
[353352114,1739790644905,-500.0,0.00013698,2]
[353352115,1739790644915,-500.0,0.00013698,2]
[353352116,1739790644923,-500.0,0.00013698,2]
[353352117,1739790644933,-500.0,0.00013698,2]
[353352118,1739790644942,-500.0,0.00013698,2]
[353352119,1739790644951,-500.0,0.00013698,2]
[353352120,1739790644961,-994.28,0.00013698,2]
[353352121,1739790644970,-500.0,0.00013698,2]
[353352122,1739790644979,-500.0,0.00013698,2]
[353352123,1739790644989,-500.0,0.00013698,2]
[353352124,1739790644998,-500.0,0.00013698,2]
[353352125,1739790645009,-501.64952675,0.00013698,2]
[353352126,1739790645019,-971.31,0.00013698,2]
[353352127,1739790645029,-971.31,0.00013698,2]
[353352128,1739790645039,-500.0,0.00013698,2]
[353352129,1739790645048,-500.0,0.00013698,2]
[353352130,1739790645057,-500.0,0.00013698,2]
[353352131,1739790645068,-500.0,0.00013698,2]
[353352132,1739790645079,-500.0,0.00013698,2]
[353352133,1739790645088,-500.0,0.00013698,2]
[353352134,1739790645097,-1044.1,0.00013698,2]
[353352135,1739790645107,-500.0,0.00013698,2]
[353352136,1739790645116,-500.0,0.00013698,2]
[353352137,1739790645126,-500.0,0.00013698,2]
[353352138,1739790645139,-500.0,0.00013698,2]
[353352139,1739790645149,-500.0,0.00013698,2]
[353352140,1739790645158,-500.0,0.00013698,2]
[353352141,1739790645167,-500.0,0.00013698,2]
[353352142,1739790645176,-500.0,0.00013698,2]
[353352143,1739790645187,-501.27975824,0.00013698,2]
[353352144,1739790645197,-500.0,0.00013698,2]
[353352145,1739790645206,-500.0,0.00013698,2]
[353352146,1739790645215,-500.0,0.00013698,2]
[353352147,1739790645224,-500.0,0.00013698,2]
[353352148,1739790645234,-500.0,0.00013698,2]
[353352149,1739790645243,-500.0,0.00013698,2]
[353352150,1739790645253,-854.4,0.00013698,2]
[353352151,1739790645262,-500.0,0.00013698,2]
[353352152,1739790645271,-500.0,0.00013698,2]
[353352153,1739790645281,-500.0,0.00013698,2]
[353352154,1739790645291,-500.0,0.00013698,2]
[353352155,1739790645301,-1384.93,0.00013698,2]
[353352156,1739790645312,-553.51,0.00013698,2]
[353352157,1739790645328,-500.0,0.00013698,2]
[353352158,1739790645337,-503.85740636,0.00013698,2]
[353352159,1739790645347,-501.15525487,0.00013698,2]
[353352160,1739790645356,-762.74,0.00013698,2]
[353352161,1739790645366,-166.60697223,0.00013698,2]
[353352162,1739790645398,-333.39302777,0.00013698,2]
[353352163,1739790645407,-500.0,0.00013698,2]
[353352164,1739790645417,-500.0,0.00013698,2]
[353352165,1739790645427,-500.0,0.00013698,2]
[353352166,1739790645436,-500.0,0.00013698,2]
[353352167,1739790645446,-500.0,0.00013698,2]
[353352168,1739790645455,-500.0,0.00013698,2]
[353352169,1739790645464,-500.0,0.00013698,2]
[353352170,1739790645474,-498.51256262,0.00013698,2]
[353352171,1739790645483,-500.0,0.00013698,2]
[353352172,1739790645493,-740.63,0.00013698,2]
[353352173,1739790645502,-5.09624747,0.00013698,2]
[353352174,1739790645526,-494.90375253,0.00013698,2]
[353352175,1739790645536,-500.0,0.00013698,2]
[353352176,1739790645548,-500.0,0.00013698,2]
[353352177,1739790645557,-500.0,0.00013698,2]
[353352178,1739790645567,-500.0,0.00013698,2]
[353352179,1739790645576,-1275.02,0.00013698,2]
[353352180,1739790645586,-657.24,0.00013698,2]
[353352181,1739790645596,-500.0,0.00013698,2]
[353352182,1739790645607,-1055.36,0.00013698,2]
[353352183,1739790645616,-500.0,0.00013698,2]
[353352184,1739790645625,-500.0,0.00013698,2]
[353352185,1739790645634,-500.0,0.00013698,2]
[353352186,1739790645644,-81.39049592,0.00013698,2]
[353352187,1739790645663,-421.35441714,0.00013698,2]
[353352188,1739790645673,-500.0,0.00013698,2]
[353352189,1739790645683,-500.0,0.00013698,2]
[353352190,1739790645693,-500.0,0.00013698,2]
[353352191,1739790645703,-721.55,0.00013698,2]
[353352192,1739790645712,-423.43392564,0.00013698,2]
[353352193,1739790645739,-76.56607436,0.00013698,2]
[353352194,1739790645749,-559.23,0.00013698,2]
[353352195,1739790645759,-500.0,0.00013698,2]
[353352196,1739790645768,-766.8,0.00013698,2]
[353352197,1739790645779,-500.0,0.00013698,2]
[353352198,1739790645788,-500.0,0.00013698,2]
[353352199,1739790645799,-500.0,0.00013698,2]
[353352200,1739790645809,-500.0,0.00013698,2]
[353352201,1739790645821,-1068.33,0.00013698,2]
[353352202,1739790645831,-500.0,0.00013698,2]
[353352203,1739790645841,-500.0,0.00013698,2]
[353352204,1739790645850,-500.0,0.00013698,2]
[353352205,1739790645860,-500.0,0.00013698,2]
[353352206,1739790645870,-500.0,0.00013698,2]
[353352207,1739790645880,-1002.17,0.00013698,2]
[353352208,1739790645890,-500.0,0.00013698,2]
[353352210,1739790645899,-194.76708853,0.00013698,2]
[353352211,1739790645909,-500.0,0.00013698,2]
[353352212,1739790645919,-500.0,0.00013698,2]
[353352213,1739790645929,-500.0,0.00013698,2]
[353352214,1739790645938,-500.0,0.00013698,2]
[353352215,1739790645948,-500.0,0.00013698,2]
[353352216,1739790645958,-500.0,0.00013698,2]
[353352217,1739790645968,-500.0,0.00013698,2]
[353352218,1739790645978,-500.0,0.00013698,2]
[353352220,1739790645987,-500.0,0.00013698,2]
[353352221,1739790645997,-500.0,0.00013698,2]
[353352222,1739790646007,-500.0,0.00013698,2]
[353352223,1739790646017,-500.0,0.00013698,2]
[353352224,1739790646027,-500.0,0.00013698,2]
[353352225,1739790646038,-500.0,0.00013698,2]
[353352226,1739790646048,-500.0,0.00013698,2]
[353352227,1739790646058,-686.93,0.00013698,2]
[353352228,1739790646071,-500.0,0.00013698,2]
[353352229,1739790646081,-500.0,0.00013698,2]
[353352230,1739790646091,-500.0,0.00013698,2]
[353352231,1739790646102,-500.0,0.00013698,2]
[353352232,1739790646112,-856.84,0.00013698,2]
[353352233,1739790646123,-500.0,0.00013698,2]
[353352234,1739790646133,-508.71092781,0.00013698,2]
[353352235,1739790646142,-500.0,0.00013698,2]
[353352236,1739790646151,-500.0,0.00013698,2]
[353352237,1739790646161,-500.0,0.00013698,2]
[353352238,1739790646171,-500.0,0.00013698,2]
[353352239,1739790646181,-500.0,0.00013698,2]
[353352240,1739790646191,-500.0,0.00013698,2]
[353352241,1739790646201,-500.0,0.00013698,2]
[353352242,1739790646210,-500.0,0.00013698,2]
[353352243,1739790646220,-500.0,0.00013698,2]
[353352244,1739790646230,-506.72506657,0.00013698,2]
[353352245,1739790646240,-500.0,0.00013698,2]
[353352246,1739790646250,-500.0,0.00013698,2]
[353352247,1739790646259,-500.0,0.00013698,2]
[353352248,1739790646269,-500.0,0.00013698,2]
[353352249,1739790646278,-500.0,0.00013698,2]
[353352250,1739790646288,-1443.26,0.00013698,2]
[353352251,1739790646298,-500.0,0.00013698,2]
[353352252,1739790646308,-738.06,0.00013698,2]
[353352253,1739790646323,-500.0,0.00013698,2]
[353352254,1739790646333,-512.81,0.00013698,2]
[353352255,1739790646343,-541.62,0.00013698,2]
[353352256,1739790646352,-505.33885886,0.00013698,2]
[353352257,1739790646363,-500.0,0.00013698,2]
[353352258,1739790646374,-500.0,0.00013698,2]
[353352259,1739790646384,-500.0,0.00013698,2]
[353352260,1739790646394,-500.0,0.00013698,2]
[353352261,1739790646406,-500.0,0.00013698,2]
[353352262,1739790646416,-500.0,0.00013698,2]
[353352263,1739790646425,-500.0,0.00013698,2]
[353352264,1739790646435,-500.0,0.00013698,2]
[353352265,1739790646444,-500.0,0.00013698,2]
[353352266,1739790646454,-623.77,0.00013698,2]
[353352267,1739790646464,-778.85,0.00013698,2]
[353352268,1739790646475,-500.0,0.00013698,2]
[353352269,1739790646485,-505.33684606,0.00013698,2]
[353352270,1739790646495,-505.78309902,0.00013698,2]
[353352271,1739790646505,-500.0,0.00013698,2]
[353352272,1739790646514,-500.0,0.00013698,2]
[353352273,1739790646524,-500.0,0.00013698,2]
[353352274,1739790646533,-500.0,0.00013698,2]
[353352275,1739790646544,-500.0,0.00013698,2]
[353352276,1739790646554,-650.86,0.00013698,2]
[353352277,1739790646568,-500.0,0.00013698,2]
[353352278,1739790646579,-1311.39,0.00013698,2]
[353352279,1739790646590,-500.0,0.00013698,2]
[353352280,1739790646600,-500.0,0.00013698,2]
[353352281,1739790646611,-500.0,0.00013698,2]
[353352282,1739790646621,-500.0,0.00013698,2]
[353352283,1739790646631,-500.0,0.00013698,2]
[353352284,1739790646642,-501.35791039,0.00013698,2]
[353352285,1739790646653,-500.0,0.00013698,2]
[353352286,1739790646663,-500.0,0.00013698,2]
[353352287,1739790646673,-767.02,0.00013698,2]
[353352288,1739790646683,-500.0,0.00013698,2]
[353352289,1739790646693,-506.65800186,0.00013698,2]
[353352290,1739790646702,-500.0,0.00013698,2]
[353352291,1739790646712,-1308.99,0.00013698,2]